{"text_format":"1","workbook":"xlsx","n_sheets":10,"sheets":["Identificação","Agua Luz e Telefone","Vigilância e Limpeza","Deslocamento","Material de Consumo","Coleta Seletiva","QVT e Capacitação","Relatório Final","Controles","Relatorio Interno"],"not_rendered":{"charts":0,"images":0,"macros":1,"external_links":0,"defined_names":0,"comments":0,"pivot_tables":0},"unopened":[],"bounds":{"document_bytes":16777216,"sheet_cells":100000,"rows_first":2000,"rows_last":500,"rows_between":2000,"halvings":0,"cell_chars":16384,"cell_head_chars":4096},"cells_cut":0,"cells_raw":0,"read":"whole","date_system":"1900"}

{"sheet":"Identificação","index":0,"n_rows":17,"n_cols":3,"rows_kept":17,"cut":false,"hidden":false,"merged":[[1,0,1,3],[0,0,0,3],[3,0,8,0],[10,0,16,0],[3,2,3,3],[6,2,6,3],[7,2,7,3],[8,2,8,3],[4,2,4,3],[5,2,5,3]]}
["Instituto Federal Sul-rio-grandense"]
["Plano de Logística Sustentável - Relatório Mensal "]
[]
["Dados de Identificação","Câmpus","Pelotas – Visconde da Graça"]
[null,"Diretor-Geral"]
[null,"Responsável pelas Informações"]
[null,"SIAPE do Responsável pelas informações"]
[null,"Mês de Referência","Novembro"]
[null,"Ano de Referência",2014]
[]
["Dados Gerais","Número de Docentes",0]
[null,"Número de Tecnico-administrativos",0]
[null,"Número de Terceirizados",0]
[null,"Número de Estagiários",0]
[null,"Número de Estudantes Presenciais",0]
[null,"Número de Estudantes a Distância",0]
[null,"Área Construída do Câmpus (m2) ",{"$f":"-F19","v":0}]

{"sheet":"Agua Luz e Telefone","index":1,"n_rows":18,"n_cols":4,"rows_kept":18,"cut":false,"hidden":false,"merged":[[0,0,0,3],[17,1,19,3],[17,0,19,0],[11,0,13,0],[14,0,16,0],[2,0,8,0],[9,0,10,0]]}
["Energia Elétrica, Água e Telefonia"]
["Área","Descrição do item","Unidade","Valor"]
["Energia elétrica","Demanda Contratada na Ponta","KWh",0]
[null,"Demanda Contratada Fora da Ponta","KWh",0]
[null,"Demanda mensal medida na Ponta","KWh",0]
[null,"Demanda mensal medida fora da ponta","KWh",0]
[null,"Consumo mensal de energia elétrica ","KWh",0]
[null,"Consumo/Demanda mensal de energia reativa excedente ","KWh",0]
[null,"Gasto mensal com o consumo de energia elétrica","R$",0]
["Água e Esgoto","Volume mensal de água utilizada","m3",0]
[null,"Gasto mensal com água e esgoto","R$",0]
["Telefonia\nfixa","Quantidade de Linhas ou links digitais (E1)","Número de Linhas ou links",0]
[null,"Quantidade de Ramais","Número de Ramais",0]
[null,"Gasto mensal em Telefonia Fixa","R$",0]
["Telefonia móvel","Quantidade de Linhas","Número de Linhas",0]
[null,"Quantidade de Ramais","Número de Ramais",0]
[null,"Gasto mensal em Telefonia Móvel","R$",0]
["Observações"]

{"sheet":"Vigilância e Limpeza","index":2,"n_rows":12,"n_cols":6,"rows_kept":12,"cut":false,"hidden":false,"merged":[[0,0,0,5],[2,0,6,0],[7,0,10,0],[11,0,13,0],[11,1,13,5]]}
["Vigilância e Limpeza"]
["Área","Descrição do item","Unidade","Valor","Unidade","Valor"]
["Vigilancia","Contrato de Vigilância - postos desarmados diurno","Número de postos",0,"Custo Unitário mensal (R$/posto)",0]
[null,"Contrato de Vigilância - postos desarmados noturno","Número de postos",0,"Custo Unitário mensal (R$/posto)",0]
[null,"Contrato de Vigilância - postos armados diurno","Número de postos",0,"Custo Unitário mensal (R$/posto)",0]
[null,"Contrato de Vigilância - postos armados noturno","Número de postos",0,"Custo Unitário mensal (R$/posto)",0]
[null,"Gasto mensal em vigilância","R$",0]
["Limpeza","Contrato de Limpeza Interna","Área Contratada em m2",0,"Custo Unitário mensal (R$/m2)",0]
[null,"Contrato de Limpeza Externa","Área Contratada em m2",0,"Custo Unitário mensal (R$/m2)",0]
[null,"Contrato de Limpeza de Esquadrias","Área Contratada em m2",0,"Custo Unitário mensal (R$/m2)",0]
[null,"Gasto Mensal com limpeza","R$",0]
["Observações"]

{"sheet":"Deslocamento","index":3,"n_rows":12,"n_cols":4,"rows_kept":12,"cut":false,"hidden":false,"merged":[[0,0,0,3],[2,0,4,0],[5,0,10,0],[11,0,13,0],[11,1,13,3]]}
["Deslocamento de Pessoal","Licitações Sustentáveis"]
["Área","Descrição do item","Unidade","Valor"]
["Transporte comercial","Gasto mensal com passagens de ônibus","R$ gasto com passagens",0]
[null,"Gasto mensal com passagens aéreas","R$ gasto com passagens",0]
[null,"Gasto mensal com locação de transporte coletivo","R$ gasto com locação",0]
["Transporte oficial","Gasto mensal com gasolina e etanol","R$ gasto com gasolina e etanol",0]
[null,"Distância mensal percorrida com gasolina e etanol","Km rodados gasolina e etanol",0]
[null,"Gasto mensal com diesel em camionetes e vans (CV)","R$ gasto com diesel CV",0]
[null,"Distância mensal percorrida com diesel em camionetes e vans (CV)","Km rodados diesel CV",0]
[null,"Gasto mensal com diesel em ônibus e micro-ônibus (OM)","R$ gasto com diesel OM",0]
[null,"Distância mensal percorrida com diesel em ônibus e micro-ônibus (OM)","Km rodados diesel OM",0]
["Observações"]

{"sheet":"Material de Consumo","index":4,"n_rows":13,"n_cols":4,"rows_kept":13,"cut":false,"hidden":false,"merged":[[0,0,0,3],[2,0,5,0],[6,0,8,0],[9,0,11,0],[12,0,14,0],[12,1,14,3]]}
["Material de Consumo"]
["Área","Descrição do item","Unidade","Valor"]
["Papel","Consumo mensal de papel branco","Número de folhas",0]
[null,"Consumo mensal de papel reciclado","Número de folhas",0]
[null,"Gasto mensal de papel branco","R$",0]
[null,"Gasto mensal de papel reciclado","R$",0]
["Copos descartáveis","Consumo mensal de copos de 200ml","Número de copos",0]
[null,"Consumo mensal de copos de 50ml","Número de copos",0]
[null,"Gasto mensal de Copos Descartáveis","R$",0]
["Cartucho ","Consumo de Toner","Quantidade Cartucho de Toner",0]
[null,"Consumo de Tinta","Quantidade Cartucho de Tinta",0]
[null,"Gasto mensal com Toner e Tinta","R$",0]
["Observações"]

{"sheet":"Coleta Seletiva","index":5,"n_rows":9,"n_cols":4,"rows_kept":9,"cut":false,"hidden":false,"merged":[[0,0,0,3],[2,0,7,0],[8,0,10,0],[8,1,10,3]]}
["Coleta Seletiva"]
["Área","Descrição do item","Unidade","Valor"]
["Coleta seletiva","Destinação de papel para reciclagem","Kg de papel",0]
[null,"Destinação de papelão para reciclagem","Kg de papelão",0]
[null,"Destinação de toner para reciclagem","Kg de toner",0]
[null,"Destinação de plástico para reciclagem","Kg de plástico",0]
[null,"Total de material reciclável destinado às cooperativas","Kg (papel+papelão+plástico)",0]
[null,"Reutilização de Papel","Kg de papel reutilizado",0]
["Observações"]

{"sheet":"QVT e Capacitação","index":6,"n_rows":9,"n_cols":4,"rows_kept":9,"cut":false,"hidden":false,"merged":[[3,0,4,0],[0,0,0,3],[5,0,7,0],[5,1,7,3],[8,0,10,0],[8,1,10,3]]}
["Qualidade de Vida no Trabalho (QVT) e Capacitação"]
["Área","Descrição do item","Unidade","Valor"]
["QVT","Participação dos servidores nos programas\ne/ou ações voltadas para a qualidade de vida no trabalho","Quantidade de Servidores",0]
["Programas e ações \nde sensibilização","Servidores participantes em programas/ações voltadas à redução de poluentes e uso de transportes alternativos/menos poluentes","número de servidores",0]
[null,"Discentes participantes em programas/ações voltadas à redução de poluentes e uso de transportes alternativos/menos poluentes","número de estudantes",0]
["Ações Realizadas"]
[]
[]
["Observações"]

{"sheet":"Relatório Final","index":7,"n_rows":110,"n_cols":5,"rows_kept":110,"cut":false,"hidden":false,"merged":[[38,1,42,1],[50,0,50,4],[51,0,51,1],[52,0,55,0],[18,0,18,4],[19,0,19,1],[20,0,25,0],[26,0,30,0],[31,0,35,0],[4,2,4,3],[105,0,109,0],[105,1,106,1],[36,0,36,4],[0,0,0,4],[2,0,2,4],[1,0,1,4],[80,0,84,0],[85,0,88,0],[89,0,89,4],[90,0,90,1],[91,0,93,0],[94,0,102,0],[68,0,68,4],[69,0,69,1],[38,0,49,0],[15,0,15,4],[80,1,84,1],[85,1,88,1],[103,0,103,4],[104,0,104,1],[70,0,74,0],[70,1,71,1],[75,0,79,0],[75,1,76,1],[56,0,56,4],[57,0,57,1],[58,0,63,0],[64,0,64,4],[65,0,65,1],[66,0,67,0],[37,0,37,1]]}
["Instituto Federal de Educação, Ciência e Tecnologia Sul-rio-Grandense"]
[{"$f":"CONCATENATE(\"RELATÓRIO MENSAL DE ACOMPANHAMENTO DO PLANO DE LOGÍSTICA SUSTENTÁVEL - \",Identificação!C8,\" / \",Identificação!C9)","v":"RELATÓRIO MENSAL DE ACOMPANHAMENTO DO PLANO DE LOGÍSTICA SUSTENTÁVEL - Novembro / 2014"}]
[{"$f":"CONCATENATE(\"Câmpus\",\" \",Identificação!C4)","v":"Câmpus Pelotas – Visconde da Graça"}]
[]
[null,null,"Dados Gerais do Mês"]
[null,null,{"$f":"Identificação!B11","v":"Número de Docentes"},{"$f":"Identificação!C11","v":0}]
[null,null,{"$f":"Identificação!B12","v":"Número de Tecnico-administrativos"},{"$f":"Identificação!C12","v":0}]
[null,null,{"$f":"Identificação!B13","v":"Número de Terceirizados"},{"$f":"Identificação!C13","v":0}]
[null,null,{"$f":"Identificação!B14","v":"Número de Estagiários"},{"$f":"Identificação!C14","v":0}]
[null,null,{"$f":"Identificação!B15","v":"Número de Estudantes Presenciais"},{"$f":"Identificação!C15","v":0}]
[null,null,{"$f":"Identificação!B16","v":"Número de Estudantes a Distância"},{"$f":"Identificação!C16","v":0}]
[null,null,{"$f":"Identificação!B17","v":"Área Construída do Câmpus (m2) "},{"$f":"Identificação!C17","v":0}]
[]
[]
[]
[{"$f":"CONCATENATE(\"Responsável pelas informações: \",Identificação!C6,\" - SIAPE: \",Identificação!C7)","v":"Responsável pelas informações:  - SIAPE: "}]
[]
[]
["1. Material de Consumo"]
["Indicador",null,"Descrição do item","Unidade","Valor"]
["Papel","1.1.1","Consumo mensal de papel branco","Número de folhas",{"$f":"'Material de Consumo'!D3","v":0}]
[null,"1.1.2","Consumo mensal de papel reciclado","Número de folhas",{"$f":"'Material de Consumo'!D4","v":0}]
[null,"1.1.3","Gasto mensal de papel branco","R$",{"$f":"'Material de Consumo'!D5","v":0}]
[null,"1.1.4","Gasto mensal de papel reciclado","R$",{"$f":"'Material de Consumo'!D6","v":0}]
[null,"1.1.5","Consumo per capita de papel branco","Número de folhas por pessoa",{"$f":"IF(SUM(Identificação!C11:C16)>0,E21/SUM(Identificação!C11:C16),0)","v":0}]
[null,"1.1.6","Consumo per capita de papel reciclado","Número de folhas por pessoa",{"$f":"IF(SUM(Identificação!C11:C16)>0,E22/SUM(Identificação!C11:C16),0)","v":0}]
["Copos descartáveis","1.2.1","Consumo mensal de copos de 200ml","Número de copos",{"$f":"'Material de Consumo'!D7","v":0}]
[null,"1.2.2","Consumo mensal de copos de 50ml","Número de copos",{"$f":"'Material de Consumo'!D8","v":0}]
[null,"1.2.3","Gasto mensal de Copos Descartáveis","R$",{"$f":"'Material de Consumo'!D9","v":0}]
[null,"1.2.4","Consumo per capita de copos de 200ml","Número de copos por pessoa",{"$f":"IF(SUM(Identificação!C11:C16)>0,E27/SUM(Identificação!C11:C16),0)","v":0}]
[null,"1.2.5","Consumo per capita de copos de 50ml","Número de copos por pessoa",{"$f":"IF(SUM(Identificação!C11:C16)>0,E28/SUM(Identificação!C11:C16),0)","v":0}]
["Cartucho ","1.3.1","Consumo de Toner","Quantidade Cartucho de Toner",{"$f":"'Material de Consumo'!D10","v":0}]
[null,"1.3.2","Consumo de Tinta","Quantidade Cartucho de Tinta",{"$f":"'Material de Consumo'!D11","v":0}]
[null,"1.3.3","Gasto mensal com Toner e Tinta","R$",{"$f":"'Material de Consumo'!D12","v":0}]
[null,"1.3.4","Consumo per capita de toner","Cartuchos de toner por pessoa",{"$f":"IF(SUM(Identificação!C11:C16)>0,E32/SUM(Identificação!C11:C16),0)","v":0}]
[null,"1.3.5","Consumo per capita de tinta","Cartuchos de tinta por pessoa",{"$f":"IF(SUM(Identificação!C11:C16)>0,E33/SUM(Identificação!C11:C16),0)","v":0}]
["2. Energia Elétrica"]
["Indicador",null,"Descrição do item","Unidade","Valor"]
["Energia elétrica","Dados","Demanda Contratada na Ponta","KWh",{"$f":"'Agua Luz e Telefone'!D3","v":0}]
[null,null,"Demanda Contratada Fora da Ponta","KWh",{"$f":"'Agua Luz e Telefone'!D4","v":0}]
[null,null,"Área Construída do Câmpus ","m2",{"$f":"Identificação!C17","v":0}]
[null,null,"Demanda medida na Ponta","KWh",{"$f":"'Agua Luz e Telefone'!D5","v":0}]
[null,null,"Demanda medida fora da ponta","KWh",{"$f":"'Agua Luz e Telefone'!D6","v":0}]
[null,"2.1","Consumo de energia elétrica ","KWh",{"$f":"'Agua Luz e Telefone'!D7","v":0}]
[null,"2.2","Consumo/Demanda de energia reativa excedente ","KWh",{"$f":"'Agua Luz e Telefone'!D8","v":0}]
[null,"2.3","Gasto com o consumo de energia elétrica","R$",{"$f":"'Agua Luz e Telefone'!D9","v":0}]
[null,"2.4","Adequação do contrato de demanda (fora de ponta)","Demanda fora da Ponta KWh",{"$f":"IF(E40>0, E43/E40,0)","v":0}]
[null,"2.5","Adequação do contrato de demanda (ponta)","Demanda na Ponta KWh",{"$f":"IF(E39>0,E42/E39,0)","v":0}]
[null,"2.6","Consumo per capita de energia elétrica","KWh por pessoa",{"$f":"IF(SUM(Identificação!C11:C16)>0,E44/SUM(Identificação!C11:C16),0)","v":0}]
[null,"2.7","Gasto com energia pela área","R$ / m2",{"$f":"IF(E41>0,E46/E41,0)","v":0}]
["3. Água"]
["Indicador",null,"Descrição do item","Unidade","Valor"]
["Água","3.1","Volume de água utilizada","m3",{"$f":"'Agua Luz e Telefone'!D10","v":0}]
[null,"3.2","Gasto mensal com água","R$",{"$f":"'Agua Luz e Telefone'!D11","v":0}]
[null,"3.3","Consumo per capita de água","volume por pessoa",{"$f":"IF(SUM(Identificação!C11:C16)>0,E53/SUM(Identificação!C11:C16),0)","v":0}]
[null,"3.4","Gasto per capita de água","R$ por pessoa",{"$f":"IF(SUM(Identificação!C11:C16)>0,E54/SUM(Identificação!C11:C16),0)","v":0}]
["4. Coleta Seletiva"]
["Indicador",null,"Descrição do item","Unidade","Valor"]
["Coleta seletiva","4.1","Destinação de papel para reciclagem","Kg de papel",{"$f":"'Coleta Seletiva'!D3","v":0}]
[null,"4.2","Destinação de papelão para reciclagem","Kg de papelão",{"$f":"'Coleta Seletiva'!D4","v":0}]
[null,"4.3","Destinação de toner para reciclagem","Kg de toner",{"$f":"'Coleta Seletiva'!D5","v":0}]
[null,"4.4","Destinação de plática para reciclagem","Kg de plástico",{"$f":"'Coleta Seletiva'!D6","v":0}]
[null,"4.5","Total de material reciclável destinado às cooperativas","Kg (papel+papelão+plástico)",{"$f":"'Coleta Seletiva'!D7","v":0}]
[null,"4.6","Reutilização de Papel","Kg de papel reutilizado",{"$f":"'Coleta Seletiva'!D8","v":0}]
["5. Qualidade de Vida no Trabalho"]
["Indicador",null,"Descrição do item","Unidade","Valor"]
["QVT","Dado","Participação dos servidores nos programas\ne/ou ações voltadas para a qualidade de vida no trabalho","Quantidade de Servidores",{"$f":"'QVT e Capacitação'!D3","v":0}]
[null,"5.1","Participação relativa dos servidores em programas e ações QVT","Participates /total de servidores",{"$f":"IF(SUM(Identificação!C11:C14)>0,E67/SUM(Identificação!C11:C14),0)","v":0}]
["6. Licitações Sustentáveis",null,"Licitações Sustentáveis"]
["Indicador",null,"Descrição do item","Unidade","Valor"]
["Telefonia \nfixa","Dados","Quantidade de Linhas ou links digitais (E1)","Número de Linhas",{"$f":"'Agua Luz e Telefone'!D12","v":0}]
[null,null,"Quantidade de Ramais","Número de Ramais",{"$f":"'Agua Luz e Telefone'!D13","v":0}]
[null,"6.1.1","Gasto em Telefonia Fixa","R$",{"$f":"'Agua Luz e Telefone'!D14","v":0}]
[null,"6.1.2","Gasto por linha","R$ / linha",{"$f":"IF(E71>0,E73/E71,0)","v":0}]
[null,"6.1.3","Gasto por ramal","R$ / ramal",{"$f":"IF(E72>0,E73/E72,0)","v":0}]
["Telefonia móvel","Dados","Quantidade de Linhas","Número de Linhas",{"$f":"'Agua Luz e Telefone'!D15","v":0}]
[null,null,"Quantidade de Ramais","Número de Ramais",{"$f":"'Agua Luz e Telefone'!D16","v":0}]
[null,"6.2.1","Gasto em Telefonia Móvel","R$",{"$f":"'Agua Luz e Telefone'!D17","v":0}]
[null,"6.2.2","Gasto por linha","R$ / linha",{"$f":"IF(E76>0,E78/E76,0)","v":0}]
[null,"6.2.3","Gasto por ramal","R$ / ramal",{"$f":"IF(E77>0,E78/E77,0)","v":0}]
["Vigilância","Dados","Contrato de Vigilância - postos desarmados diurno","Número de postos",{"$f":"'Vigilância e Limpeza'!D3","v":0}]
[null,null,"Contrato de Vigilância - postos desarmados noturno","Número de postos",{"$f":"'Vigilância e Limpeza'!D4","v":0}]
[null,null,"Contrato de Vigilância - postos armados diurno","Número de postos",{"$f":"'Vigilância e Limpeza'!D5","v":0}]
[null,null,"Contrato de Vigilância - postos armados noturno","Número de postos",{"$f":"'Vigilância e Limpeza'!D6","v":0}]
[null,null,"Gasto mensal em vigilância","R$",{"$f":"'Vigilância e Limpeza'!D7","v":0}]
["Limpeza","Dados","Contrato de Limpeza Interna","Área Contratada em m2",{"$f":"'Vigilância e Limpeza'!D8","v":0}]
[null,null,"Contrato de Limpeza Externa","Área Contratada em m3",{"$f":"'Vigilância e Limpeza'!D9","v":0}]
[null,null,"Contrato de Limpeza de Esquadrias","Área Contratada em m4",{"$f":"'Vigilância e Limpeza'!D10","v":0}]
[null,null,"Gasto Mensal com limpeza","R$",{"$f":"'Vigilância e Limpeza'!D11","v":0}]
["7. Deslocamento de Pessoal",null,"Licitações Sustentáveis"]
["Indicador",null,"Descrição do item","Unidade","Valor"]
["Transporte comercial","7.1.1","Gasto com ônibus","R$ gasto com passagens",{"$f":"Deslocamento!D3","v":0}]
[null,"7.1.2","Gasto com avião","R$ gasto com passagens",{"$f":"Deslocamento!D4","v":0}]
[null,"7.1.3","Gasto com locação de transporte coletivo","R$ gasto com locação",{"$f":"Deslocamento!D5","v":0}]
["Transporte oficial","7.2.1","Gasto com gasolina e etanol","R$ gasto com gasolina e etanol",{"$f":"Deslocamento!D6","v":0}]
[null,"7.2.2","Distância percorrida com gasolina e etanol","Km rodados gasolina e etanol",{"$f":"Deslocamento!D7","v":0}]
[null,"7.2.3","Gasto com diesel em caminhonetes e vans (CV)","R$ gasto com diesel CV",{"$f":"Deslocamento!D8","v":0}]
[null,"7.2.4","Distância percorrida com diesel em caminonetes e vans (CV)","Km rodados diesel CV",{"$f":"Deslocamento!D9","v":0}]
[null,"7.2.5","Gasto com diesel em ônibus e micro-ônibus (OM)","R$ gasto com diesel OM",{"$f":"Deslocamento!D10","v":0}]
[null,"7.2.6","Distância percorrida com diesel em ônibus e micro-ônibus (OM)","Km rodados diesel OM",{"$f":"Deslocamento!D11","v":0}]
[null,"7.2.7","Gasto por Km com gasolina e etanol","R$ / km",{"$f":"IF(E96>0,E95/E96,0)","v":0}]
[null,"7.2.8","Gasto por Km com diesel em caminonetes e vans (CV)","R$ / km CV",{"$f":"IF(E98>0,E97/E98,0)","v":0}]
[null,"7.2.9","Gasto por Km com diesel em em ônibus e micro-ônibus (OM)","R$ / km OM",{"$f":"IF(E100>0,E99/E100,0)","v":0}]
["7. Deslocamento de Pessoal (continuação)",null,"Licitações Sustentáveis"]
["Indicador",null,"Descrição do item","Unidade","Valor"]
["Programas e ações de sensibilização","Dados","Servidores participantes em programas/ações voltadas à redução de poluentes e uso de transportes alternativos/menos poluentes","número de servidores",{"$f":"'QVT e Capacitação'!D4","v":0}]
[null,null,"Discentes participantes em programas/ações voltadas à redução de poluentes e uso de transportes alternativos/menos poluentes","número de discentes",{"$f":"'QVT e Capacitação'!D5","v":0}]
[null,"7.3.1","Participação relativa dos servidores em  programas/ações voltadas à redução de poluentes e uso de transportes alternativos/menos poluentes","Participantes / total de servidores",{"$f":"IF(SUM(Identificação!C11:C16)>0,E106/SUM(Identificação!C11:C16),0)","v":0}]
[null,"7.3.2","Participação relativa dos estudantes em  programas/ações voltadas à redução de poluentes e uso de transportes alternativos/menos poluentes","Participantes / total de estudantes",{"$f":"IF(SUM(Identificação!C15:C16)>0,E107/SUM(Identificação!C15:C16),0)","v":0}]
[null,"7.3.3","Participação relativa dos servidores e estudantes em  programas/ações voltadas à redução de poluentes e uso de transportes alternativos/menos poluentes","Participantes / total de servidores mais estudantes",{"$f":"IF(SUM(Identificação!C11:C16)>0,(E106+E107)/SUM(Identificação!C11:C16),0)","v":0}]

{"sheet":"Controles","index":8,"n_rows":31,"n_cols":3,"rows_kept":31,"cut":false,"hidden":false,"merged":[]}
[null,"Câmpus"]
[null,"Pelotas"]
[null,"Pelotas – Visconde da Graça"]
[null,"Sapucaia do Sul"]
[null,"Bagé"]
[null,"Camaquã"]
[null,"Charqueadas"]
[null,"Gravataí"]
[null,"Jaguarão"]
[null,"Lajeado"]
[null,"Novo Hamburgo"]
[null,"Passo Fundo"]
[null,"Reitoria"]
[null,"Santana do Livramento"]
[null,"Sapiranga"]
[null,"Venâncio Aires"]
[]
[]
[null,"Ano","Mês"]
[null,2014,"Janeiro"]
[null,2015,"Fevereiro"]
[null,2016,"Março"]
[null,2017,"Abril"]
[null,2018,"Maio"]
[null,2019,"Junho"]
[null,2020,"Julho"]
[null,null,"Agosto"]
[null,null,"Setembro"]
[null,null,"Outubro"]
[null,null,"Novembro"]
[null,null,"Dezembro"]

{"sheet":"Relatorio Interno","index":9,"n_rows":65,"n_cols":8,"rows_kept":65,"cut":false,"hidden":false,"merged":[]}
["Câmpus","Ano","Mês","Área","Indicador","Descrição do item","Unidade","Valor"]
[{"$f":"Identificação!$C$4","v":"Pelotas – Visconde da Graça"},{"$f":"Identificação!$C$9","v":2014},{"$f":"Identificação!$C$8","v":"Novembro"},{"$f":"'Relatório Final'!$A$21","v":"Papel"},{"$f":"'Relatório Final'!B21","v":"1.1.1"},{"$f":"'Relatório Final'!C21","v":"Consumo mensal de papel branco"},{"$f":"'Relatório Final'!D21","v":"Número de folhas"},{"$f":"'Relatório Final'!E21","v":0}]
[{"$f":"Identificação!$C$4","v":"Pelotas – Visconde da Graça"},{"$f":"Identificação!$C$9","v":2014},{"$f":"Identificação!$C$8","v":"Novembro"},{"$f":"'Relatório Final'!$A$21","v":"Papel"},{"$f":"'Relatório Final'!B22","v":"1.1.2"},{"$f":"'Relatório Final'!C22","v":"Consumo mensal de papel reciclado"},{"$f":"'Relatório Final'!D22","v":"Número de folhas"},{"$f":"'Relatório Final'!E22","v":0}]
[{"$f":"Identificação!$C$4","v":"Pelotas – Visconde da Graça"},{"$f":"Identificação!$C$9","v":2014},{"$f":"Identificação!$C$8","v":"Novembro"},{"$f":"'Relatório Final'!$A$21","v":"Papel"},{"$f":"'Relatório Final'!B23","v":"1.1.3"},{"$f":"'Relatório Final'!C23","v":"Gasto mensal de papel branco"},{"$f":"'Relatório Final'!D23","v":"R$"},{"$f":"'Relatório Final'!E23","v":0}]
[{"$f":"Identificação!$C$4","v":"Pelotas – Visconde da Graça"},{"$f":"Identificação!$C$9","v":2014},{"$f":"Identificação!$C$8","v":"Novembro"},{"$f":"'Relatório Final'!$A$21","v":"Papel"},{"$f":"'Relatório Final'!B24","v":"1.1.4"},{"$f":"'Relatório Final'!C24","v":"Gasto mensal de papel reciclado"},{"$f":"'Relatório Final'!D24","v":"R$"},{"$f":"'Relatório Final'!E24","v":0}]
[{"$f":"Identificação!$C$4","v":"Pelotas – Visconde da Graça"},{"$f":"Identificação!$C$9","v":2014},{"$f":"Identificação!$C$8","v":"Novembro"},{"$f":"'Relatório Final'!$A$21","v":"Papel"},{"$f":"'Relatório Final'!B25","v":"1.1.5"},{"$f":"'Relatório Final'!C25","v":"Consumo per capita de papel branco"},{"$f":"'Relatório Final'!D25","v":"Número de folhas por pessoa"},{"$f":"'Relatório Final'!E25","v":0}]
[{"$f":"Identificação!$C$4","v":"Pelotas – Visconde da Graça"},{"$f":"Identificação!$C$9","v":2014},{"$f":"Identificação!$C$8","v":"Novembro"},{"$f":"'Relatório Final'!$A$21","v":"Papel"},{"$f":"'Relatório Final'!B26","v":"1.1.6"},{"$f":"'Relatório Final'!C26","v":"Consumo per capita de papel reciclado"},{"$f":"'Relatório Final'!D26","v":"Número de folhas por pessoa"},{"$f":"'Relatório Final'!E26","v":0}]
[{"$f":"Identificação!$C$4","v":"Pelotas – Visconde da Graça"},{"$f":"Identificação!$C$9","v":2014},{"$f":"Identificação!$C$8","v":"Novembro"},{"$f":"'Relatório Final'!$A$27","v":"Copos descartáveis"},{"$f":"'Relatório Final'!B27","v":"1.2.1"},{"$f":"'Relatório Final'!C27","v":"Consumo mensal de copos de 200ml"},{"$f":"'Relatório Final'!D27","v":"Número de copos"},{"$f":"'Relatório Final'!E27","v":0}]
[{"$f":"Identificação!$C$4","v":"Pelotas – Visconde da Graça"},{"$f":"Identificação!$C$9","v":2014},{"$f":"Identificação!$C$8","v":"Novembro"},{"$f":"'Relatório Final'!$A$27","v":"Copos descartáveis"},{"$f":"'Relatório Final'!B28","v":"1.2.2"},{"$f":"'Relatório Final'!C28","v":"Consumo mensal de copos de 50ml"},{"$f":"'Relatório Final'!D28","v":"Número de copos"},{"$f":"'Relatório Final'!E28","v":0}]
[{"$f":"Identificação!$C$4","v":"Pelotas – Visconde da Graça"},{"$f":"Identificação!$C$9","v":2014},{"$f":"Identificação!$C$8","v":"Novembro"},{"$f":"'Relatório Final'!$A$27","v":"Copos descartáveis"},{"$f":"'Relatório Final'!B29","v":"1.2.3"},{"$f":"'Relatório Final'!C29","v":"Gasto mensal de Copos Descartáveis"},{"$f":"'Relatório Final'!D29","v":"R$"},{"$f":"'Relatório Final'!E29","v":0}]
[{"$f":"Identificação!$C$4","v":"Pelotas – Visconde da Graça"},{"$f":"Identificação!$C$9","v":2014},{"$f":"Identificação!$C$8","v":"Novembro"},{"$f":"'Relatório Final'!$A$27","v":"Copos descartáveis"},{"$f":"'Relatório Final'!B30","v":"1.2.4"},{"$f":"'Relatório Final'!C30","v":"Consumo per capita de copos de 200ml"},{"$f":"'Relatório Final'!D30","v":"Número de copos por pessoa"},{"$f":"'Relatório Final'!E30","v":0}]
[{"$f":"Identificação!$C$4","v":"Pelotas – Visconde da Graça"},{"$f":"Identificação!$C$9","v":2014},{"$f":"Identificação!$C$8","v":"Novembro"},{"$f":"'Relatório Final'!$A$27","v":"Copos descartáveis"},{"$f":"'Relatório Final'!B31","v":"1.2.5"},{"$f":"'Relatório Final'!C31","v":"Consumo per capita de copos de 50ml"},{"$f":"'Relatório Final'!D31","v":"Número de copos por pessoa"},{"$f":"'Relatório Final'!E31","v":0}]
[{"$f":"Identificação!$C$4","v":"Pelotas – Visconde da Graça"},{"$f":"Identificação!$C$9","v":2014},{"$f":"Identificação!$C$8","v":"Novembro"},{"$f":"'Relatório Final'!$A$32","v":"Cartucho "},{"$f":"'Relatório Final'!B32","v":"1.3.1"},{"$f":"'Relatório Final'!C32","v":"Consumo de Toner"},{"$f":"'Relatório Final'!D32","v":"Quantidade Cartucho de Toner"},{"$f":"'Relatório Final'!E32","v":0}]
[{"$f":"Identificação!$C$4","v":"Pelotas – Visconde da Graça"},{"$f":"Identificação!$C$9","v":2014},{"$f":"Identificação!$C$8","v":"Novembro"},{"$f":"'Relatório Final'!$A$32","v":"Cartucho "},{"$f":"'Relatório Final'!B33","v":"1.3.2"},{"$f":"'Relatório Final'!C33","v":"Consumo de Tinta"},{"$f":"'Relatório Final'!D33","v":"Quantidade Cartucho de Tinta"},{"$f":"'Relatório Final'!E33","v":0}]
[{"$f":"Identificação!$C$4","v":"Pelotas – Visconde da Graça"},{"$f":"Identificação!$C$9","v":2014},{"$f":"Identificação!$C$8","v":"Novembro"},{"$f":"'Relatório Final'!$A$32","v":"Cartucho "},{"$f":"'Relatório Final'!B34","v":"1.3.3"},{"$f":"'Relatório Final'!C34","v":"Gasto mensal com Toner e Tinta"},{"$f":"'Relatório Final'!D34","v":"R$"},{"$f":"'Relatório Final'!E34","v":0}]
[{"$f":"Identificação!$C$4","v":"Pelotas – Visconde da Graça"},{"$f":"Identificação!$C$9","v":2014},{"$f":"Identificação!$C$8","v":"Novembro"},{"$f":"'Relatório Final'!$A$32","v":"Cartucho "},{"$f":"'Relatório Final'!B35","v":"1.3.4"},{"$f":"'Relatório Final'!C35","v":"Consumo per capita de toner"},{"$f":"'Relatório Final'!D35","v":"Cartuchos de toner por pessoa"},{"$f":"'Relatório Final'!E35","v":0}]
[{"$f":"Identificação!$C$4","v":"Pelotas – Visconde da Graça"},{"$f":"Identificação!$C$9","v":2014},{"$f":"Identificação!$C$8","v":"Novembro"},{"$f":"'Relatório Final'!$A$32","v":"Cartucho "},{"$f":"'Relatório Final'!B36","v":"1.3.5"},{"$f":"'Relatório Final'!C36","v":"Consumo per capita de tinta"},{"$f":"'Relatório Final'!D36","v":"Cartuchos de tinta por pessoa"},{"$f":"'Relatório Final'!E36","v":0}]
[{"$f":"Identificação!$C$4","v":"Pelotas – Visconde da Graça"},{"$f":"Identificação!$C$9","v":2014},{"$f":"Identificação!$C$8","v":"Novembro"},{"$f":"'Relatório Final'!$A$39","v":"Energia elétrica"},{"$f":"'Relatório Final'!B44","v":"2.1"},{"$f":"'Relatório Final'!C44","v":"Consumo de energia elétrica "},{"$f":"'Relatório Final'!D44","v":"KWh"},{"$f":"'Relatório Final'!E44","v":0}]
[{"$f":"Identificação!$C$4","v":"Pelotas – Visconde da Graça"},{"$f":"Identificação!$C$9","v":2014},{"$f":"Identificação!$C$8","v":"Novembro"},{"$f":"'Relatório Final'!$A$39","v":"Energia elétrica"},{"$f":"'Relatório Final'!B45","v":"2.2"},{"$f":"'Relatório Final'!C45","v":"Consumo/Demanda de energia reativa excedente "},{"$f":"'Relatório Final'!D45","v":"KWh"},{"$f":"'Relatório Final'!E45","v":0}]
[{"$f":"Identificação!$C$4","v":"Pelotas – Visconde da Graça"},{"$f":"Identificação!$C$9","v":2014},{"$f":"Identificação!$C$8","v":"Novembro"},{"$f":"'Relatório Final'!$A$39","v":"Energia elétrica"},{"$f":"'Relatório Final'!B46","v":"2.3"},{"$f":"'Relatório Final'!C46","v":"Gasto com o consumo de energia elétrica"},{"$f":"'Relatório Final'!D46","v":"R$"},{"$f":"'Relatório Final'!E46","v":0}]
[{"$f":"Identificação!$C$4","v":"Pelotas – Visconde da Graça"},{"$f":"Identificação!$C$9","v":2014},{"$f":"Identificação!$C$8","v":"Novembro"},{"$f":"'Relatório Final'!$A$39","v":"Energia elétrica"},{"$f":"'Relatório Final'!B47","v":"2.4"},{"$f":"'Relatório Final'!C47","v":"Adequação do contrato de demanda (fora de ponta)"},{"$f":"'Relatório Final'!D47","v":"Demanda fora da Ponta KWh"},{"$f":"'Relatório Final'!E47","v":0}]
[{"$f":"Identificação!$C$4","v":"Pelotas – Visconde da Graça"},{"$f":"Identificação!$C$9","v":2014},{"$f":"Identificação!$C$8","v":"Novembro"},{"$f":"'Relatório Final'!$A$39","v":"Energia elétrica"},{"$f":"'Relatório Final'!B48","v":"2.5"},{"$f":"'Relatório Final'!C48","v":"Adequação do contrato de demanda (ponta)"},{"$f":"'Relatório Final'!D48","v":"Demanda na Ponta KWh"},{"$f":"'Relatório Final'!E48","v":0}]
[{"$f":"Identificação!$C$4","v":"Pelotas – Visconde da Graça"},{"$f":"Identificação!$C$9","v":2014},{"$f":"Identificação!$C$8","v":"Novembro"},{"$f":"'Relatório Final'!$A$39","v":"Energia elétrica"},{"$f":"'Relatório Final'!B49","v":"2.6"},{"$f":"'Relatório Final'!C49","v":"Consumo per capita de energia elétrica"},{"$f":"'Relatório Final'!D49","v":"KWh por pessoa"},{"$f":"'Relatório Final'!E49","v":0}]
[{"$f":"Identificação!$C$4","v":"Pelotas – Visconde da Graça"},{"$f":"Identificação!$C$9","v":2014},{"$f":"Identificação!$C$8","v":"Novembro"},{"$f":"'Relatório Final'!$A$39","v":"Energia elétrica"},{"$f":"'Relatório Final'!B50","v":"2.7"},{"$f":"'Relatório Final'!C50","v":"Gasto com energia pela área"},{"$f":"'Relatório Final'!D50","v":"R$ / m2"},{"$f":"'Relatório Final'!E50","v":0}]
[{"$f":"Identificação!$C$4","v":"Pelotas – Visconde da Graça"},{"$f":"Identificação!$C$9","v":2014},{"$f":"Identificação!$C$8","v":"Novembro"},{"$f":"'Relatório Final'!$A$53","v":"Água"},{"$f":"'Relatório Final'!B53","v":"3.1"},{"$f":"'Relatório Final'!C53","v":"Volume de água utilizada"},{"$f":"'Relatório Final'!D53","v":"m3"},{"$f":"'Relatório Final'!E53","v":0}]
[{"$f":"Identificação!$C$4","v":"Pelotas – Visconde da Graça"},{"$f":"Identificação!$C$9","v":2014},{"$f":"Identificação!$C$8","v":"Novembro"},{"$f":"'Relatório Final'!$A$53","v":"Água"},{"$f":"'Relatório Final'!B54","v":"3.2"},{"$f":"'Relatório Final'!C54","v":"Gasto mensal com água"},{"$f":"'Relatório Final'!D54","v":"R$"},{"$f":"'Relatório Final'!E54","v":0}]
[{"$f":"Identificação!$C$4","v":"Pelotas – Visconde da Graça"},{"$f":"Identificação!$C$9","v":2014},{"$f":"Identificação!$C$8","v":"Novembro"},{"$f":"'Relatório Final'!$A$53","v":"Água"},{"$f":"'Relatório Final'!B55","v":"3.3"},{"$f":"'Relatório Final'!C55","v":"Consumo per capita de água"},{"$f":"'Relatório Final'!D55","v":"volume por pessoa"},{"$f":"'Relatório Final'!E55","v":0}]
[{"$f":"Identificação!$C$4","v":"Pelotas – Visconde da Graça"},{"$f":"Identificação!$C$9","v":2014},{"$f":"Identificação!$C$8","v":"Novembro"},{"$f":"'Relatório Final'!$A$53","v":"Água"},{"$f":"'Relatório Final'!B56","v":"3.4"},{"$f":"'Relatório Final'!C56","v":"Gasto per capita de água"},{"$f":"'Relatório Final'!D56","v":"R$ por pessoa"},{"$f":"'Relatório Final'!E56","v":0}]
[{"$f":"Identificação!$C$4","v":"Pelotas – Visconde da Graça"},{"$f":"Identificação!$C$9","v":2014},{"$f":"Identificação!$C$8","v":"Novembro"},{"$f":"'Relatório Final'!$A$59","v":"Coleta seletiva"},{"$f":"'Relatório Final'!B59","v":"4.1"},{"$f":"'Relatório Final'!C59","v":"Destinação de papel para reciclagem"},{"$f":"'Relatório Final'!D59","v":"Kg de papel"},{"$f":"'Relatório Final'!E59","v":0}]
[{"$f":"Identificação!$C$4","v":"Pelotas – Visconde da Graça"},{"$f":"Identificação!$C$9","v":2014},{"$f":"Identificação!$C$8","v":"Novembro"},{"$f":"'Relatório Final'!$A$59","v":"Coleta seletiva"},{"$f":"'Relatório Final'!B60","v":"4.2"},{"$f":"'Relatório Final'!C60","v":"Destinação de papelão para reciclagem"},{"$f":"'Relatório Final'!D60","v":"Kg de papelão"},{"$f":"'Relatório Final'!E60","v":0}]
[{"$f":"Identificação!$C$4","v":"Pelotas – Visconde da Graça"},{"$f":"Identificação!$C$9","v":2014},{"$f":"Identificação!$C$8","v":"Novembro"},{"$f":"'Relatório Final'!$A$59","v":"Coleta seletiva"},{"$f":"'Relatório Final'!B61","v":"4.3"},{"$f":"'Relatório Final'!C61","v":"Destinação de toner para reciclagem"},{"$f":"'Relatório Final'!D61","v":"Kg de toner"},{"$f":"'Relatório Final'!E61","v":0}]
[{"$f":"Identificação!$C$4","v":"Pelotas – Visconde da Graça"},{"$f":"Identificação!$C$9","v":2014},{"$f":"Identificação!$C$8","v":"Novembro"},{"$f":"'Relatório Final'!$A$59","v":"Coleta seletiva"},{"$f":"'Relatório Final'!B62","v":"4.4"},{"$f":"'Relatório Final'!C62","v":"Destinação de plática para reciclagem"},{"$f":"'Relatório Final'!D62","v":"Kg de plástico"},{"$f":"'Relatório Final'!E62","v":0}]
[{"$f":"Identificação!$C$4","v":"Pelotas – Visconde da Graça"},{"$f":"Identificação!$C$9","v":2014},{"$f":"Identificação!$C$8","v":"Novembro"},{"$f":"'Relatório Final'!$A$59","v":"Coleta seletiva"},{"$f":"'Relatório Final'!B63","v":"4.5"},{"$f":"'Relatório Final'!C63","v":"Total de material reciclável destinado às cooperativas"},{"$f":"'Relatório Final'!D63","v":"Kg (papel+papelão+plástico)"},{"$f":"'Relatório Final'!E63","v":0}]
[{"$f":"Identificação!$C$4","v":"Pelotas – Visconde da Graça"},{"$f":"Identificação!$C$9","v":2014},{"$f":"Identificação!$C$8","v":"Novembro"},{"$f":"'Relatório Final'!$A$59","v":"Coleta seletiva"},{"$f":"'Relatório Final'!B64","v":"4.6"},{"$f":"'Relatório Final'!C64","v":"Reutilização de Papel"},{"$f":"'Relatório Final'!D64","v":"Kg de papel reutilizado"},{"$f":"'Relatório Final'!E64","v":0}]
[{"$f":"Identificação!$C$4","v":"Pelotas – Visconde da Graça"},{"$f":"Identificação!$C$9","v":2014},{"$f":"Identificação!$C$8","v":"Novembro"},{"$f":"'Relatório Final'!$A$67","v":"QVT"},{"$f":"'Relatório Final'!B68","v":"5.1"},{"$f":"'Relatório Final'!C68","v":"Participação relativa dos servidores em programas e ações QVT"},{"$f":"'Relatório Final'!D68","v":"Participates /total de servidores"},{"$f":"'Relatório Final'!E68","v":0}]
[{"$f":"Identificação!$C$4","v":"Pelotas – Visconde da Graça"},{"$f":"Identificação!$C$9","v":2014},{"$f":"Identificação!$C$8","v":"Novembro"},{"$f":"'Relatório Final'!$A$71","v":"Telefonia \nfixa"},{"$f":"'Relatório Final'!B73","v":"6.1.1"},{"$f":"'Relatório Final'!C73","v":"Gasto em Telefonia Fixa"},{"$f":"'Relatório Final'!D73","v":"R$"},{"$f":"'Relatório Final'!E73","v":0}]
[{"$f":"Identificação!$C$4","v":"Pelotas – Visconde da Graça"},{"$f":"Identificação!$C$9","v":2014},{"$f":"Identificação!$C$8","v":"Novembro"},{"$f":"'Relatório Final'!$A$71","v":"Telefonia \nfixa"},{"$f":"'Relatório Final'!B74","v":"6.1.2"},{"$f":"'Relatório Final'!C74","v":"Gasto por linha"},{"$f":"'Relatório Final'!D74","v":"R$ / linha"},{"$f":"'Relatório Final'!E74","v":0}]
[{"$f":"Identificação!$C$4","v":"Pelotas – Visconde da Graça"},{"$f":"Identificação!$C$9","v":2014},{"$f":"Identificação!$C$8","v":"Novembro"},{"$f":"'Relatório Final'!$A$71","v":"Telefonia \nfixa"},{"$f":"'Relatório Final'!B75","v":"6.1.3"},{"$f":"'Relatório Final'!C75","v":"Gasto por ramal"},{"$f":"'Relatório Final'!D75","v":"R$ / ramal"},{"$f":"'Relatório Final'!E75","v":0}]
[{"$f":"Identificação!$C$4","v":"Pelotas – Visconde da Graça"},{"$f":"Identificação!$C$9","v":2014},{"$f":"Identificação!$C$8","v":"Novembro"},{"$f":"'Relatório Final'!$A$76","v":"Telefonia móvel"},{"$f":"'Relatório Final'!B78","v":"6.2.1"},{"$f":"'Relatório Final'!C78","v":"Gasto em Telefonia Móvel"},{"$f":"'Relatório Final'!D78","v":"R$"},{"$f":"'Relatório Final'!E78","v":0}]
[{"$f":"Identificação!$C$4","v":"Pelotas – Visconde da Graça"},{"$f":"Identificação!$C$9","v":2014},{"$f":"Identificação!$C$8","v":"Novembro"},{"$f":"'Relatório Final'!$A$76","v":"Telefonia móvel"},{"$f":"'Relatório Final'!B79","v":"6.2.2"},{"$f":"'Relatório Final'!C79","v":"Gasto por linha"},{"$f":"'Relatório Final'!D79","v":"R$ / linha"},{"$f":"'Relatório Final'!E79","v":0}]
[{"$f":"Identificação!$C$4","v":"Pelotas – Visconde da Graça"},{"$f":"Identificação!$C$9","v":2014},{"$f":"Identificação!$C$8","v":"Novembro"},{"$f":"'Relatório Final'!$A$76","v":"Telefonia móvel"},{"$f":"'Relatório Final'!B80","v":"6.2.3"},{"$f":"'Relatório Final'!C80","v":"Gasto por ramal"},{"$f":"'Relatório Final'!D80","v":"R$ / ramal"},{"$f":"'Relatório Final'!E80","v":0}]
[{"$f":"Identificação!$C$4","v":"Pelotas – Visconde da Graça"},{"$f":"Identificação!$C$9","v":2014},{"$f":"Identificação!$C$8","v":"Novembro"},{"$f":"'Relatório Final'!$A$81","v":"Vigilância"},{"$f":"'Relatório Final'!B$81","v":"Dados"},{"$f":"'Relatório Final'!C81","v":"Contrato de Vigilância - postos desarmados diurno"},{"$f":"'Relatório Final'!D81","v":"Número de postos"},{"$f":"'Relatório Final'!E81","v":0}]
[{"$f":"Identificação!$C$4","v":"Pelotas – Visconde da Graça"},{"$f":"Identificação!$C$9","v":2014},{"$f":"Identificação!$C$8","v":"Novembro"},{"$f":"'Relatório Final'!$A$81","v":"Vigilância"},{"$f":"'Relatório Final'!B$81","v":"Dados"},{"$f":"'Relatório Final'!C82","v":"Contrato de Vigilância - postos desarmados noturno"},{"$f":"'Relatório Final'!D82","v":"Número de postos"},{"$f":"'Relatório Final'!E82","v":0}]
[{"$f":"Identificação!$C$4","v":"Pelotas – Visconde da Graça"},{"$f":"Identificação!$C$9","v":2014},{"$f":"Identificação!$C$8","v":"Novembro"},{"$f":"'Relatório Final'!$A$81","v":"Vigilância"},{"$f":"'Relatório Final'!B$81","v":"Dados"},{"$f":"'Relatório Final'!C83","v":"Contrato de Vigilância - postos armados diurno"},{"$f":"'Relatório Final'!D83","v":"Número de postos"},{"$f":"'Relatório Final'!E83","v":0}]
[{"$f":"Identificação!$C$4","v":"Pelotas – Visconde da Graça"},{"$f":"Identificação!$C$9","v":2014},{"$f":"Identificação!$C$8","v":"Novembro"},{"$f":"'Relatório Final'!$A$81","v":"Vigilância"},{"$f":"'Relatório Final'!B$81","v":"Dados"},{"$f":"'Relatório Final'!C84","v":"Contrato de Vigilância - postos armados noturno"},{"$f":"'Relatório Final'!D84","v":"Número de postos"},{"$f":"'Relatório Final'!E84","v":0}]
[{"$f":"Identificação!$C$4","v":"Pelotas – Visconde da Graça"},{"$f":"Identificação!$C$9","v":2014},{"$f":"Identificação!$C$8","v":"Novembro"},{"$f":"'Relatório Final'!$A$81","v":"Vigilância"},{"$f":"'Relatório Final'!B$81","v":"Dados"},{"$f":"'Relatório Final'!C85","v":"Gasto mensal em vigilância"},{"$f":"'Relatório Final'!D85","v":"R$"},{"$f":"'Relatório Final'!E85","v":0}]
[{"$f":"Identificação!$C$4","v":"Pelotas – Visconde da Graça"},{"$f":"Identificação!$C$9","v":2014},{"$f":"Identificação!$C$8","v":"Novembro"},{"$f":"'Relatório Final'!$A$86","v":"Limpeza"},{"$f":"'Relatório Final'!B$86","v":"Dados"},{"$f":"'Relatório Final'!C86","v":"Contrato de Limpeza Interna"},{"$f":"'Relatório Final'!D86","v":"Área Contratada em m2"},{"$f":"'Relatório Final'!E86","v":0}]
[{"$f":"Identificação!$C$4","v":"Pelotas – Visconde da Graça"},{"$f":"Identificação!$C$9","v":2014},{"$f":"Identificação!$C$8","v":"Novembro"},{"$f":"'Relatório Final'!$A$86","v":"Limpeza"},{"$f":"'Relatório Final'!B$86","v":"Dados"},{"$f":"'Relatório Final'!C87","v":"Contrato de Limpeza Externa"},{"$f":"'Relatório Final'!D87","v":"Área Contratada em m3"},{"$f":"'Relatório Final'!E87","v":0}]
[{"$f":"Identificação!$C$4","v":"Pelotas – Visconde da Graça"},{"$f":"Identificação!$C$9","v":2014},{"$f":"Identificação!$C$8","v":"Novembro"},{"$f":"'Relatório Final'!$A$86","v":"Limpeza"},{"$f":"'Relatório Final'!B$86","v":"Dados"},{"$f":"'Relatório Final'!C88","v":"Contrato de Limpeza de Esquadrias"},{"$f":"'Relatório Final'!D88","v":"Área Contratada em m4"},{"$f":"'Relatório Final'!E88","v":0}]
[{"$f":"Identificação!$C$4","v":"Pelotas – Visconde da Graça"},{"$f":"Identificação!$C$9","v":2014},{"$f":"Identificação!$C$8","v":"Novembro"},{"$f":"'Relatório Final'!$A$86","v":"Limpeza"},{"$f":"'Relatório Final'!B$86","v":"Dados"},{"$f":"'Relatório Final'!C89","v":"Gasto Mensal com limpeza"},{"$f":"'Relatório Final'!D89","v":"R$"},{"$f":"'Relatório Final'!E89","v":0}]
[{"$f":"Identificação!$C$4","v":"Pelotas – Visconde da Graça"},{"$f":"Identificação!$C$9","v":2014},{"$f":"Identificação!$C$8","v":"Novembro"},{"$f":"'Relatório Final'!$A$92","v":"Transporte comercial"},{"$f":"'Relatório Final'!B92","v":"7.1.1"},{"$f":"'Relatório Final'!C92","v":"Gasto com ônibus"},{"$f":"'Relatório Final'!D92","v":"R$ gasto com passagens"},{"$f":"'Relatório Final'!E92","v":0}]
[{"$f":"Identificação!$C$4","v":"Pelotas – Visconde da Graça"},{"$f":"Identificação!$C$9","v":2014},{"$f":"Identificação!$C$8","v":"Novembro"},{"$f":"'Relatório Final'!$A$92","v":"Transporte comercial"},{"$f":"'Relatório Final'!B93","v":"7.1.2"},{"$f":"'Relatório Final'!C93","v":"Gasto com avião"},{"$f":"'Relatório Final'!D93","v":"R$ gasto com passagens"},{"$f":"'Relatório Final'!E93","v":0}]
[{"$f":"Identificação!$C$4","v":"Pelotas – Visconde da Graça"},{"$f":"Identificação!$C$9","v":2014},{"$f":"Identificação!$C$8","v":"Novembro"},{"$f":"'Relatório Final'!$A$92","v":"Transporte comercial"},{"$f":"'Relatório Final'!B94","v":"7.1.3"},{"$f":"'Relatório Final'!C94","v":"Gasto com locação de transporte coletivo"},{"$f":"'Relatório Final'!D94","v":"R$ gasto com locação"},{"$f":"'Relatório Final'!E94","v":0}]
[{"$f":"Identificação!$C$4","v":"Pelotas – Visconde da Graça"},{"$f":"Identificação!$C$9","v":2014},{"$f":"Identificação!$C$8","v":"Novembro"},{"$f":"'Relatório Final'!$A$95","v":"Transporte oficial"},{"$f":"'Relatório Final'!B95","v":"7.2.1"},{"$f":"'Relatório Final'!C95","v":"Gasto com gasolina e etanol"},{"$f":"'Relatório Final'!D95","v":"R$ gasto com gasolina e etanol"},{"$f":"'Relatório Final'!E95","v":0}]
[{"$f":"Identificação!$C$4","v":"Pelotas – Visconde da Graça"},{"$f":"Identificação!$C$9","v":2014},{"$f":"Identificação!$C$8","v":"Novembro"},{"$f":"'Relatório Final'!$A$95","v":"Transporte oficial"},{"$f":"'Relatório Final'!B96","v":"7.2.2"},{"$f":"'Relatório Final'!C96","v":"Distância percorrida com gasolina e etanol"},{"$f":"'Relatório Final'!D96","v":"Km rodados gasolina e etanol"},{"$f":"'Relatório Final'!E96","v":0}]
[{"$f":"Identificação!$C$4","v":"Pelotas – Visconde da Graça"},{"$f":"Identificação!$C$9","v":2014},{"$f":"Identificação!$C$8","v":"Novembro"},{"$f":"'Relatório Final'!$A$95","v":"Transporte oficial"},{"$f":"'Relatório Final'!B97","v":"7.2.3"},{"$f":"'Relatório Final'!C97","v":"Gasto com diesel em caminhonetes e vans (CV)"},{"$f":"'Relatório Final'!D97","v":"R$ gasto com diesel CV"},{"$f":"'Relatório Final'!E97","v":0}]
[{"$f":"Identificação!$C$4","v":"Pelotas – Visconde da Graça"},{"$f":"Identificação!$C$9","v":2014},{"$f":"Identificação!$C$8","v":"Novembro"},{"$f":"'Relatório Final'!$A$95","v":"Transporte oficial"},{"$f":"'Relatório Final'!B98","v":"7.2.4"},{"$f":"'Relatório Final'!C98","v":"Distância percorrida com diesel em caminonetes e vans (CV)"},{"$f":"'Relatório Final'!D98","v":"Km rodados diesel CV"},{"$f":"'Relatório Final'!E98","v":0}]
[{"$f":"Identificação!$C$4","v":"Pelotas – Visconde da Graça"},{"$f":"Identificação!$C$9","v":2014},{"$f":"Identificação!$C$8","v":"Novembro"},{"$f":"'Relatório Final'!$A$95","v":"Transporte oficial"},{"$f":"'Relatório Final'!B99","v":"7.2.5"},{"$f":"'Relatório Final'!C99","v":"Gasto com diesel em ônibus e micro-ônibus (OM)"},{"$f":"'Relatório Final'!D99","v":"R$ gasto com diesel OM"},{"$f":"'Relatório Final'!E99","v":0}]
[{"$f":"Identificação!$C$4","v":"Pelotas – Visconde da Graça"},{"$f":"Identificação!$C$9","v":2014},{"$f":"Identificação!$C$8","v":"Novembro"},{"$f":"'Relatório Final'!$A$95","v":"Transporte oficial"},{"$f":"'Relatório Final'!B100","v":"7.2.6"},{"$f":"'Relatório Final'!C100","v":"Distância percorrida com diesel em ônibus e micro-ônibus (OM)"},{"$f":"'Relatório Final'!D100","v":"Km rodados diesel OM"},{"$f":"'Relatório Final'!E100","v":0}]
[{"$f":"Identificação!$C$4","v":"Pelotas – Visconde da Graça"},{"$f":"Identificação!$C$9","v":2014},{"$f":"Identificação!$C$8","v":"Novembro"},{"$f":"'Relatório Final'!$A$95","v":"Transporte oficial"},{"$f":"'Relatório Final'!B101","v":"7.2.7"},{"$f":"'Relatório Final'!C101","v":"Gasto por Km com gasolina e etanol"},{"$f":"'Relatório Final'!D101","v":"R$ / km"},{"$f":"'Relatório Final'!E101","v":0}]
[{"$f":"Identificação!$C$4","v":"Pelotas – Visconde da Graça"},{"$f":"Identificação!$C$9","v":2014},{"$f":"Identificação!$C$8","v":"Novembro"},{"$f":"'Relatório Final'!$A$95","v":"Transporte oficial"},{"$f":"'Relatório Final'!B102","v":"7.2.8"},{"$f":"'Relatório Final'!C102","v":"Gasto por Km com diesel em caminonetes e vans (CV)"},{"$f":"'Relatório Final'!D102","v":"R$ / km CV"},{"$f":"'Relatório Final'!E102","v":0}]
[{"$f":"Identificação!$C$4","v":"Pelotas – Visconde da Graça"},{"$f":"Identificação!$C$9","v":2014},{"$f":"Identificação!$C$8","v":"Novembro"},{"$f":"'Relatório Final'!$A$95","v":"Transporte oficial"},{"$f":"'Relatório Final'!B103","v":"7.2.9"},{"$f":"'Relatório Final'!C103","v":"Gasto por Km com diesel em em ônibus e micro-ônibus (OM)"},{"$f":"'Relatório Final'!D103","v":"R$ / km OM"},{"$f":"'Relatório Final'!E103","v":0}]
[{"$f":"Identificação!$C$4","v":"Pelotas – Visconde da Graça"},{"$f":"Identificação!$C$9","v":2014},{"$f":"Identificação!$C$8","v":"Novembro"},{"$f":"'Relatório Final'!$A$106","v":"Programas e ações de sensibilização"},{"$f":"'Relatório Final'!B108","v":"7.3.1"},{"$f":"'Relatório Final'!C108","v":"Participação relativa dos servidores em  programas/ações voltadas à redução de poluentes e uso de transportes alternativos/menos poluentes"},{"$f":"'Relatório Final'!D108","v":"Participantes / total de servidores"},{"$f":"'Relatório Final'!E108","v":0}]
[{"$f":"Identificação!$C$4","v":"Pelotas – Visconde da Graça"},{"$f":"Identificação!$C$9","v":2014},{"$f":"Identificação!$C$8","v":"Novembro"},{"$f":"'Relatório Final'!$A$106","v":"Programas e ações de sensibilização"},{"$f":"'Relatório Final'!B109","v":"7.3.2"},{"$f":"'Relatório Final'!C109","v":"Participação relativa dos estudantes em  programas/ações voltadas à redução de poluentes e uso de transportes alternativos/menos poluentes"},{"$f":"'Relatório Final'!D109","v":"Participantes / total de estudantes"},{"$f":"'Relatório Final'!E109","v":0}]
[{"$f":"Identificação!$C$4","v":"Pelotas – Visconde da Graça"},{"$f":"Identificação!$C$9","v":2014},{"$f":"Identificação!$C$8","v":"Novembro"},{"$f":"'Relatório Final'!$A$106","v":"Programas e ações de sensibilização"},{"$f":"'Relatório Final'!B110","v":"7.3.3"},{"$f":"'Relatório Final'!C110","v":"Participação relativa dos servidores e estudantes em  programas/ações voltadas à redução de poluentes e uso de transportes alternativos/menos poluentes"},{"$f":"'Relatório Final'!D110","v":"Participantes / total de servidores mais estudantes"},{"$f":"'Relatório Final'!E110","v":0}]